[Event "*** Titled Tuesday Blitz"]
[Site "Chess.com"]
[Date "2021.02.16"]
[Round "5"]
[White "vovachesss"]
[Black "EvgenyT"]
[Result "0-1"]
[WhiteElo "2659"]
[BlackElo "2931"]
[TimeControl "180+1"]
[EndTime "10:58:31 PST"]
[Termination "EvgenyT won on time"]

1. d4 {[%clk 0:03:00.9]} 1... Nf6 {[%clk 0:02:59.1]} 2. Bf4 {[%clk 0:02:58.7]}
2... b6 {[%clk 0:02:56.4]} 3. Nf3 {[%clk 0:02:56.4]} 3... Bb7 {[%clk 0:02:56.4]}
4. e3 {[%clk 0:02:57]} 4... c5 {[%clk 0:02:55.4]} 5. c3 {[%clk 0:02:57]} 5... g6
{[%clk 0:02:54.7]} 6. Nbd2 {[%clk 0:02:55.2]} 6... Bg7 {[%clk 0:02:54.5]} 7. h3
{[%clk 0:02:55.6]} 7... O-O {[%clk 0:02:54.2]} 8. Bd3 {[%clk 0:02:55.6]} 8...
Nc6 {[%clk 0:02:53.3]} 9. O-O {[%clk 0:02:55.7]} 9... Rc8 {[%clk 0:02:52.9]} 10.
Qe2 {[%clk 0:02:55.3]} 10... d6 {[%clk 0:02:49.3]} 11. Rac1 {[%clk 0:02:45.7]}
11... Qd7 {[%clk 0:02:38]} 12. a3 {[%clk 0:02:41.6]} 12... Rfd8 {[%clk 0:02:35]}
13. e4 {[%clk 0:02:40]} 13... e5 {[%clk 0:02:28.1]} 14. Be3 {[%clk 0:02:10.3]}
14... exd4 {[%clk 0:02:08.1]} 15. cxd4 {[%clk 0:02:10.4]} 15... cxd4 {[%clk
0:02:06.3]} 16. Nxd4 {[%clk 0:02:05.9]} 16... d5 {[%clk 0:02:06.1]} 17. Nxc6
{[%clk 0:01:18.7]} 17... Bxc6 {[%clk 0:02:05.2]} 18. Ba6 {[%clk 0:01:12.1]}
18... Bb7 {[%clk 0:01:58.8]} 19. e5 {[%clk 0:00:41.1]} 19... Ne4 {[%clk
0:01:55.6]} 20. Nxe4 {[%clk 0:00:38]} 20... dxe4 {[%clk 0:01:55.6]} 21. Bf4
{[%clk 0:00:25.1]} 21... Rxc1 {[%clk 0:01:42.9]} 22. Rxc1 {[%clk 0:00:24]} 22...
Bxa6 {[%clk 0:01:30.6]} 23. Qxa6 {[%clk 0:00:24.9]} 23... Qf5 {[%clk 0:01:30.9]}
24. Be3 {[%clk 0:00:20.6]} 24... Qxe5 {[%clk 0:01:20.2]} 25. Qxa7 {[%clk
0:00:20.5]} 25... Qxb2 {[%clk 0:01:20]} 26. Qxb6 {[%clk 0:00:19.5]} 26... Qxb6
{[%clk 0:01:17.7]} 27. Bxb6 {[%clk 0:00:20.4]} 27... Ra8 {[%clk 0:01:18]} 28.
Bc5 {[%clk 0:00:16.3]} 28... h5 {[%clk 0:01:09.2]} 29. Kf1 {[%clk 0:00:16]}
29... Ra4 {[%clk 0:01:06.7]} 30. Rc2 {[%clk 0:00:14.4]} 30... f5 {[%clk
0:01:05.3]} 31. Ke2 {[%clk 0:00:14.2]} 31... Kf7 {[%clk 0:01:04.4]} 32. Bb4
{[%clk 0:00:14.4]} 32... Be5 {[%clk 0:01:04.3]} 33. Rc5 {[%clk 0:00:13.9]} 33...
Bd6 {[%clk 0:00:54.6]} 34. Rb5 {[%clk 0:00:12.7]} 34... Bxb4 {[%clk 0:00:53.3]}
35. axb4 {[%clk 0:00:13.6]} 35... h4 {[%clk 0:00:49.3]} 36. Ke3 {[%clk
0:00:13.2]} 36... Ra3+ {[%clk 0:00:49.3]} 37. Kf4 {[%clk 0:00:12.6]} 37... Ra2
{[%clk 0:00:47.3]} 38. Rb7+ {[%clk 0:00:12]} 38... Kf6 {[%clk 0:00:46.7]} 39.
Rb6+ {[%clk 0:00:12.1]} 39... Kf7 {[%clk 0:00:46.7]} 40. Ke3 {[%clk 0:00:08.5]}
40... Ra3+ {[%clk 0:00:43.6]} 41. Kf4 {[%clk 0:00:08.4]} 41... Ra2 {[%clk
0:00:41.9]} 42. Ke3 {[%clk 0:00:07.1]} 42... g5 {[%clk 0:00:39.9]} 43. Rb5
{[%clk 0:00:05.7]} 43... Ke6 {[%clk 0:00:38.9]} 44. Rb6+ {[%clk 0:00:05.8]}
44... Ke7 {[%clk 0:00:36.8]} 45. Rb5 {[%clk 0:00:06.7]} 45... Ra3+ {[%clk
0:00:35.6]} 46. Kd4 {[%clk 0:00:06.6]} 46... Rd3+ {[%clk 0:00:33.6]} 47. Ke5
{[%clk 0:00:06.5]} 47... Rd2 {[%clk 0:00:29.3]} 48. Kxf5 {[%clk 0:00:06.6]}
48... Rxf2+ {[%clk 0:00:29.5]} 49. Kxg5 {[%clk 0:00:06.4]} 49... Ke6 {[%clk
0:00:26.8]} 50. Rb8 {[%clk 0:00:03.3]} 50... Ke7 {[%clk 0:00:23.2]} 51. b5
{[%clk 0:00:02.9]} 51... e3 {[%clk 0:00:22.9]} 0-1

[Event "*** Titled Tuesday Blitz"]
[Site "Chess.com"]
[Date "2021.02.16"]
[Round "5"]
[White "Lysiak_Poltorak"]
[Black "iulik86"]
[Result "0-1"]
[WhiteElo "2430"]
[BlackElo "2626"]
[TimeControl "180+1"]
[EndTime "10:58:32 PST"]
[Termination "iulik86 won by resignation"]

1. d4 {[%clk 0:03:00.9]} 1... f5 {[%clk 0:02:58.5]} 2. g4 {[%clk 0:03:00.2]}
2... fxg4 {[%clk 0:02:43.1]} 3. h3 {[%clk 0:02:56.8]} 3... g3 {[%clk 0:02:43.1]}
4. fxg3 {[%clk 0:02:56.3]} 4... d5 {[%clk 0:02:41.9]} 5. Bg2 {[%clk 0:02:56.1]}
5... e6 {[%clk 0:02:33]} 6. Nc3 {[%clk 0:02:54.9]} 6... Bd6 {[%clk 0:02:32.6]}
7. e4 {[%clk 0:02:30.7]} 7... Bxg3+ {[%clk 0:02:25.7]} 8. Kf1 {[%clk 0:02:30.1]}
8... Qf6+ {[%clk 0:02:21]} 9. Nf3 {[%clk 0:02:27.7]} 9... Ne7 {[%clk 0:02:15.5]}
10. Bg5 {[%clk 0:02:26.5]} 10... Qf7 {[%clk 0:02:15.3]} 11. Bxe7 {[%clk
0:02:23.5]} 11... Qxe7 {[%clk 0:02:13.5]} 12. exd5 {[%clk 0:02:22]} 12... O-O
{[%clk 0:02:13]} 13. Qe2 {[%clk 0:02:14.5]} 13... Na6 {[%clk 0:02:01.6]} 14.
dxe6 {[%clk 0:02:09.9]} 14... Qxe6 {[%clk 0:02:01.3]} 15. d5 {[%clk 0:01:36.3]}
15... Qg6 {[%clk 0:01:51.3]} 16. Ne4 {[%clk 0:01:18.9]} 16... Bf4 {[%clk
0:01:43.5]} 17. Re1 {[%clk 0:01:10.4]} 17... Bd7 {[%clk 0:01:42]} 18. Qc4 {[%clk
0:01:06.4]} 18... Kh8 {[%clk 0:01:35.2]} 19. Kf2 {[%clk 0:00:57.6]} 19... Rae8
{[%clk 0:01:26.9]} 20. Rhf1 {[%clk 0:00:49.1]} 20... Qb6+ {[%clk 0:01:25.7]} 21.
Qd4 {[%clk 0:00:48.1]} 21... Qxd4+ {[%clk 0:01:07.2]} 22. Nxd4 {[%clk 0:00:49]}
22... Bd2+ {[%clk 0:01:04.6]} 23. Kg3 {[%clk 0:00:42.7]} 23... Bxe1+ {[%clk
0:01:03.4]} 24. Rxe1 {[%clk 0:00:43.6]} 24... Nb4 {[%clk 0:00:57.3]} 25. c4
{[%clk 0:00:35.1]} 25... Nd3 {[%clk 0:00:51.1]} 26. Re3 {[%clk 0:00:33.6]} 26...
Nxb2 {[%clk 0:00:46.4]} 27. Rb3 {[%clk 0:00:28.4]} 27... Nxc4 {[%clk 0:00:44.6]}
28. Rxb7 {[%clk 0:00:28.9]} 28... Ne3 {[%clk 0:00:41.6]} 29. Bf3 {[%clk
0:00:29.2]} 29... Nf5+ {[%clk 0:00:35.8]} 30. Nxf5 {[%clk 0:00:26.9]} 30... Bxf5
{[%clk 0:00:36.7]} 31. Nc5 {[%clk 0:00:24.6]} 31... Re3 {[%clk 0:00:33]} 32. Rb3
{[%clk 0:00:17.6]} 32... Rxb3 {[%clk 0:00:28.4]} 33. axb3 {[%clk 0:00:18.5]}
33... Bxh3 {[%clk 0:00:25.5]} 34. Ne6 {[%clk 0:00:15.1]} 34... Bxe6 {[%clk
0:00:24.4]} 35. dxe6 {[%clk 0:00:16]} 35... Re8 {[%clk 0:00:21.5]} 36. Bd5
{[%clk 0:00:15.1]} 36... g6 {[%clk 0:00:18.5]} 37. Kf4 {[%clk 0:00:15.6]} 37...
Kg7 {[%clk 0:00:18.5]} 38. Ke5 {[%clk 0:00:16.5]} 38... Re7 {[%clk 0:00:17.4]}
39. Bc6 {[%clk 0:00:15.3]} 39... h5 {[%clk 0:00:16.6]} 40. Bd7 {[%clk
0:00:14.6]} 40... h4 {[%clk 0:00:16.4]} 41. Bc6 {[%clk 0:00:09]} 41... h3 {[%clk
0:00:16.6]} 42. b4 {[%clk 0:00:06.2]} 42... a6 {[%clk 0:00:15]} 43. Bb7 {[%clk
0:00:06.1]} 43... h2 {[%clk 0:00:15.1]} 44. Bc6 {[%clk 0:00:06.2]} 44... Kf8
{[%clk 0:00:13.5]} 45. Kf6 {[%clk 0:00:06.4]} 45... Rg7 {[%clk 0:00:12.5]} 46.
Bh1 {[%clk 0:00:04.1]} 46... g5 {[%clk 0:00:12.3]} 47. e7+ {[%clk 0:00:04]}
47... Rxe7 {[%clk 0:00:11.9]} 48. Kxg5 {[%clk 0:00:04.9]} 48... Re1 {[%clk
0:00:12.1]} 0-1

[Event "*** Titled Tuesday Blitz"]
[Site "Chess.com"]
[Date "2021.02.16"]
[Round "5"]
[White "HElissalt"]
[Black "AungTZ"]
[Result "0-1"]
[WhiteElo "2202"]
[BlackElo "2031"]
[TimeControl "180+1"]
[EndTime "10:58:32 PST"]
[Termination "AungTZ won on time"]

1. d4 {[%clk 0:02:52.7]} 1... Nf6 {[%clk 0:02:59]} 2. c4 {[%clk 0:02:50.2]} 2...
e6 {[%clk 0:02:59.5]} 3. Nf3 {[%clk 0:02:49.1]} 3... Bb4+ {[%clk 0:02:59.7]} 4.
Bd2 {[%clk 0:02:48.6]} 4... a5 {[%clk 0:03:00.1]} 5. g3 {[%clk 0:02:47.2]} 5...
O-O {[%clk 0:02:58.5]} 6. Bg2 {[%clk 0:02:47.3]} 6... d5 {[%clk 0:02:57]} 7. O-O
{[%clk 0:02:46.2]} 7... h6 {[%clk 0:02:55]} 8. Qc2 {[%clk 0:02:42.7]} 8... c6
{[%clk 0:02:52.3]} 9. c5 {[%clk 0:02:33.3]} 9... Bxd2 {[%clk 0:02:50]} 10. Nbxd2
{[%clk 0:02:32.8]} 10... b6 {[%clk 0:02:42.6]} 11. cxb6 {[%clk 0:02:29.5]} 11...
Qxb6 {[%clk 0:02:42.3]} 12. Nb3 {[%clk 0:02:29.5]} 12... a4 {[%clk 0:02:26.5]}
13. Nc5 {[%clk 0:02:28.9]} 13... Nbd7 {[%clk 0:02:18]} 14. Nxd7 {[%clk
0:01:55.8]} 14... Nxd7 {[%clk 0:02:12]} 15. Rfc1 {[%clk 0:01:54.6]} 15... Ba6
{[%clk 0:02:07.6]} 16. Qxc6 {[%clk 0:01:44.3]} 16... Qxc6 {[%clk 0:02:05.7]} 17.
Rxc6 {[%clk 0:01:43.5]} 17... Bxe2 {[%clk 0:02:06.2]} 18. Rc7 {[%clk 0:01:29.3]}
18... Nb6 {[%clk 0:02:03.5]} 19. Rac1 {[%clk 0:01:23.2]} 19... Nc4 {[%clk
0:01:56.8]} 20. Rc2 {[%clk 0:01:13.9]} 20... Bxf3 {[%clk 0:01:53.2]} 21. Bxf3
{[%clk 0:01:13]} 21... Rab8 {[%clk 0:01:51.5]} 22. Be2 {[%clk 0:01:03.8]} 22...
Nxb2 {[%clk 0:01:48.8]} 23. a3 {[%clk 0:01:01.6]} 23... g6 {[%clk 0:01:26.6]}
24. h4 {[%clk 0:00:59.2]} 24... h5 {[%clk 0:01:24.5]} 25. g4 {[%clk 0:00:59.2]}
25... hxg4 {[%clk 0:01:23.7]} 26. Re7 {[%clk 0:00:54.2]} 26... Rfc8 {[%clk
0:01:11.5]} 27. Rxc8+ {[%clk 0:00:37.8]} 27... Rxc8 {[%clk 0:01:11]} 28. Bxg4
{[%clk 0:00:38.3]} 28... Kg7 {[%clk 0:00:51.7]} 29. Bxe6 {[%clk 0:00:34.5]}
29... Kf6 {[%clk 0:00:50.6]} 30. Bxc8 {[%clk 0:00:27.3]} 30... Kxe7 {[%clk
0:00:50.8]} 31. Ba6 {[%clk 0:00:19.6]} 31... Kd6 {[%clk 0:00:49.3]} 32. Bb5
{[%clk 0:00:19.3]} 32... Nc4 {[%clk 0:00:45.3]} 33. Bxa4 {[%clk 0:00:18.7]}
33... Nxa3 {[%clk 0:00:45.7]} 34. Be8 {[%clk 0:00:19.1]} 34... Ke7 {[%clk
0:00:44.1]} 35. Bc6 {[%clk 0:00:19.3]} 35... Ke6 {[%clk 0:00:43.5]} 36. Kg2
{[%clk 0:00:18]} 36... Nc2 {[%clk 0:00:43.3]} 37. Bb5 {[%clk 0:00:14.6]} 37...
Nxd4 {[%clk 0:00:43]} 38. Bd3 {[%clk 0:00:15]} 38... Nf5 {[%clk 0:00:35.2]} 39.
Kh3 {[%clk 0:00:15]} 39... Kf6 {[%clk 0:00:27.9]} 40. Kg4 {[%clk 0:00:14.9]}
40... Nh6+ {[%clk 0:00:27.8]} 41. Kg3 {[%clk 0:00:13.2]} 41... Ke5 {[%clk
0:00:24.6]} 42. Bb1 {[%clk 0:00:09.5]} 42... f5 {[%clk 0:00:21.8]} 43. Kf3
{[%clk 0:00:06.6]} 43... d4 {[%clk 0:00:20.9]} 44. Kg3 {[%clk 0:00:06]} 44...
Nf7 {[%clk 0:00:18.6]} 45. Kf3 {[%clk 0:00:04.4]} 45... Nd6 {[%clk 0:00:18]} 46.
Bd3 {[%clk 0:00:03.6]} 46... Ne8 {[%clk 0:00:14.3]} 47. Kg3 {[%clk 0:00:03.2]}
47... Nf6 {[%clk 0:00:14.1]} 48. Kf3 {[%clk 0:00:03.4]} 48... Nh5 {[%clk
0:00:13.8]} 49. Bc4 {[%clk 0:00:01.6]} 49... Nf4 {[%clk 0:00:13.5]} 0-1

[Event "*** Titled Tuesday Blitz"]
[Site "Chess.com"]
[Date "2021.02.16"]
[Round "5"]
[White "PowerThinking2650"]
[Black "SimplyDevina"]
[Result "1-0"]
[WhiteElo "2425"]
[BlackElo "2246"]
[TimeControl "180+1"]
[EndTime "10:58:33 PST"]
[Termination "PowerThinking2650 won by resignation"]

1. e4 {[%clk 0:03:00.9]} 1... d5 {[%clk 0:02:54]} 2. exd5 {[%clk 0:03:00.7]}
2... Qxd5 {[%clk 0:02:54.9]} 3. Nc3 {[%clk 0:03:01]} 3... Qd8 {[%clk 0:02:50.5]}
4. d4 {[%clk 0:03:01.3]} 4... Nf6 {[%clk 0:02:49.6]} 5. Nf3 {[%clk 0:03:01.5]}
5... g6 {[%clk 0:02:46.6]} 6. Bc4 {[%clk 0:02:59.5]} 6... Bg7 {[%clk 0:02:46.4]}
7. O-O {[%clk 0:02:57.1]} 7... O-O {[%clk 0:02:46.4]} 8. h3 {[%clk 0:02:56.9]}
8... a6 {[%clk 0:02:43.8]} 9. Re1 {[%clk 0:02:55.3]} 9... b5 {[%clk 0:02:43.8]}
10. Bb3 {[%clk 0:02:54.8]} 10... Bb7 {[%clk 0:02:44]} 11. Ne5 {[%clk 0:02:54]}
11... Nbd7 {[%clk 0:02:31.8]} 12. Bg5 {[%clk 0:02:51.4]} 12... Nb6 {[%clk
0:02:22.1]} 13. Qd2 {[%clk 0:02:37.6]} 13... b4 {[%clk 0:01:37]} 14. Na4 {[%clk
0:02:37.3]} 14... Nxa4 {[%clk 0:01:26.9]} 15. Bxa4 {[%clk 0:02:38.2]} 15... Qd5
{[%clk 0:01:19.3]} 16. f3 {[%clk 0:02:27.6]} 16... c5 {[%clk 0:01:00.8]} 17. Bb3
{[%clk 0:02:01.3]} 17... Qxd4+ {[%clk 0:00:49.6]} 18. Qxd4 {[%clk 0:01:59.7]}
18... cxd4 {[%clk 0:00:50.5]} 19. Rad1 {[%clk 0:01:40.3]} 19... Rad8 {[%clk
0:00:47.5]} 20. Ng4 {[%clk 0:00:49.6]} 20... Rd7 {[%clk 0:00:27.9]} 21. Rxe7
{[%clk 0:00:19.3]} 21... Rxe7 {[%clk 0:00:22.4]} 22. Nxf6+ {[%clk 0:00:19.4]}
22... Bxf6 {[%clk 0:00:17.6]} 23. Bxf6 {[%clk 0:00:19.8]} 23... Rd7 {[%clk
0:00:09.9]} 24. Re1 {[%clk 0:00:19.8]} 24... Bd5 {[%clk 0:00:07.8]} 25. g4
{[%clk 0:00:15]} 25... Bxb3 {[%clk 0:00:07.3]} 26. axb3 {[%clk 0:00:15.9]} 26...
d3 {[%clk 0:00:04.4]} 27. cxd3 {[%clk 0:00:14.6]} 27... Rxd3 {[%clk 0:00:05.3]}
28. Kg2 {[%clk 0:00:14.7]} 28... Rxb3 {[%clk 0:00:05.4]} 29. Re7 {[%clk
0:00:14.8]} 29... a5 {[%clk 0:00:04.8]} 30. h4 {[%clk 0:00:14.9]} 30... a4
{[%clk 0:00:05]} 31. Kg3 {[%clk 0:00:14.7]} 31... a3 {[%clk 0:00:04.9]} 32. bxa3
{[%clk 0:00:15.1]} 32... bxa3 {[%clk 0:00:05.8]} 33. Ra7 {[%clk 0:00:15.1]}
33... Rc8 {[%clk 0:00:04]} 34. h5 {[%clk 0:00:14]} 34... gxh5 {[%clk 0:00:02.7]}
35. g5 {[%clk 0:00:14.5]} 35... Kf8 {[%clk 0:00:03.6]} 36. Kh4 {[%clk
0:00:13.8]} 36... Ke8 {[%clk 0:00:03.7]} 37. Kxh5 {[%clk 0:00:14.1]} 37... Rxf3
{[%clk 0:00:03.7]} 38. Kh6 {[%clk 0:00:14.5]} 38... Rh3+ {[%clk 0:00:03.8]} 39.
Kg7 {[%clk 0:00:14.9]} 39... Rc4 {[%clk 0:00:01.9]} 40. Re7+ {[%clk 0:00:14.2]}
40... Kd8 {[%clk 0:00:02.2]} 41. Re4+ {[%clk 0:00:14.7]} 41... Kd7 {[%clk
0:00:02.8]} 42. Rxc4 {[%clk 0:00:15.3]} 42... a2 {[%clk 0:00:03.7]} 43. Ra4
{[%clk 0:00:15.6]} 43... Rh2 {[%clk 0:00:02.6]} 44. Kxf7 {[%clk 0:00:15.9]}
44... Rf2 {[%clk 0:00:02.3]} 45. Ra7+ {[%clk 0:00:15.9]} 45... Kd6 {[%clk
0:00:02]} 46. Kg7 {[%clk 0:00:16.2]} 46... h5 {[%clk 0:00:01.5]} 47. gxh6 {[%clk
0:00:15.7]} 47... Rg2+ {[%clk 0:00:01.7]} 48. Kf7 {[%clk 0:00:16]} 48... Rf2
{[%clk 0:00:01.5]} 49. Kg6 {[%clk 0:00:14.6]} 49... Kd5 {[%clk 0:00:01.6]} 50.
h7 {[%clk 0:00:14.6]} 50... Rg2+ {[%clk 0:00:02.5]} 51. Bg5 {[%clk 0:00:14.6]}
51... Kc4 {[%clk 0:00:01.4]} 52. h8=Q {[%clk 0:00:14.1]} 1-0

[Event "*** Titled Tuesday Blitz"]
[Site "Chess.com"]
[Date "2021.02.16"]
[Round "5"]
[White "Oglob71"]
[Black "albi1999"]
[Result "1-0"]
[WhiteElo "2417"]
[BlackElo "2596"]
[TimeControl "180+1"]
[EndTime "10:58:38 PST"]
[Termination "Oglob71 won by resignation"]

1. d4 {[%clk 0:03:00.9]} 1... d5 {[%clk 0:02:56.5]} 2. Nf3 {[%clk 0:02:58.7]}
2... Nf6 {[%clk 0:02:56.7]} 3. c4 {[%clk 0:02:59.2]} 3... e6 {[%clk 0:02:54.1]}
4. Qc2 {[%clk 0:02:58.6]} 4... c5 {[%clk 0:02:43.9]} 5. dxc5 {[%clk 0:02:57.7]}
5... Bxc5 {[%clk 0:02:29.5]} 6. cxd5 {[%clk 0:02:57.7]} 6... Bb4+ {[%clk
0:02:24.4]} 7. Bd2 {[%clk 0:02:55.5]} 7... Bxd2+ {[%clk 0:02:24.4]} 8. Nbxd2
{[%clk 0:02:53.8]} 8... exd5 {[%clk 0:02:24.8]} 9. e3 {[%clk 0:02:52.7]} 9...
O-O {[%clk 0:02:25.4]} 10. Be2 {[%clk 0:02:50.8]} 10... Nc6 {[%clk 0:02:25.5]}
11. O-O {[%clk 0:02:45.9]} 11... Bg4 {[%clk 0:02:22.9]} 12. h3 {[%clk
0:02:45.1]} 12... Bh5 {[%clk 0:02:20.6]} 13. Nb3 {[%clk 0:02:44.4]} 13... Rc8
{[%clk 0:02:18.3]} 14. Qd1 {[%clk 0:02:41]} 14... Qb6 {[%clk 0:02:13.2]} 15.
Nfd4 {[%clk 0:02:38.8]} 15... Bxe2 {[%clk 0:02:12]} 16. Qxe2 {[%clk 0:02:37.3]}
16... Ne5 {[%clk 0:02:11.8]} 17. Rac1 {[%clk 0:02:35]} 17... Nc4 {[%clk
0:02:11.1]} 18. Rfd1 {[%clk 0:02:31.1]} 18... Rfe8 {[%clk 0:02:10.7]} 19. Rc2
{[%clk 0:02:09.5]} 19... Rc7 {[%clk 0:02:01.9]} 20. Rdc1 {[%clk 0:02:09.8]}
20... Rce7 {[%clk 0:02:01.5]} 21. Nf5 {[%clk 0:02:02.7]} 21... Re5 {[%clk
0:01:59.5]} 22. Nbd4 {[%clk 0:02:03]} 22... g6 {[%clk 0:01:57.4]} 23. Nh6+
{[%clk 0:02:02.5]} 23... Kg7 {[%clk 0:01:57.1]} 24. Ng4 {[%clk 0:02:02.8]} 24...
Nxg4 {[%clk 0:01:24.9]} 25. Qxg4 {[%clk 0:02:00.3]} 25... h5 {[%clk 0:01:22.1]}
26. Qf3 {[%clk 0:01:57.2]} 26... R8e7 {[%clk 0:01:02.9]} 27. b3 {[%clk
0:01:49.9]} 27... Nd6 {[%clk 0:01:03.4]} 28. Rc5 {[%clk 0:01:40.6]} 28... Ne4
{[%clk 0:00:59.4]} 29. Rc8 {[%clk 0:01:39.5]} 29... Qa5 {[%clk 0:00:43.4]} 30.
a4 {[%clk 0:01:35.6]} 30... Qd2 {[%clk 0:00:41.6]} 31. Qe2 {[%clk 0:01:29.4]}
31... Qb4 {[%clk 0:00:35.2]} 32. Nf3 {[%clk 0:01:25.3]} 32... R5e6 {[%clk
0:00:34.6]} 33. Qd3 {[%clk 0:01:24.9]} 33... Rf6 {[%clk 0:00:22.8]} 34. Rd8
{[%clk 0:01:20]} 34... Nc5 {[%clk 0:00:16.4]} 35. Qd4 {[%clk 0:01:15.3]} 35...
Qxd4 {[%clk 0:00:13.6]} 36. Nxd4 {[%clk 0:01:14.9]} 36... Ne6 {[%clk 0:00:13.7]}
37. Nxe6+ {[%clk 0:01:14.1]} 37... fxe6 {[%clk 0:00:14.6]} 38. Rcc8 {[%clk
0:01:11.9]} 38... e5 {[%clk 0:00:11.4]} 39. Rxd5 {[%clk 0:01:10.6]} 39... a6
{[%clk 0:00:10.1]} 40. a5 {[%clk 0:01:09.5]} 40... Kf7 {[%clk 0:00:09.9]} 41. b4
{[%clk 0:01:06.5]} 41... Ke6 {[%clk 0:00:10.1]} 42. Rcd8 {[%clk 0:01:02.4]}
42... Kf7 {[%clk 0:00:08.7]} 43. R8d7 {[%clk 0:01:01.8]} 43... Re6 {[%clk
0:00:07.8]} 44. Rxe7+ {[%clk 0:00:58.5]} 44... Rxe7 {[%clk 0:00:08.3]} 45. e4
{[%clk 0:00:58.9]} 45... Ke6 {[%clk 0:00:08.5]} 46. b5 {[%clk 0:00:59]} 46...
axb5 {[%clk 0:00:08.4]} 47. Rxb5 {[%clk 0:00:59.1]} 47... Rc7 {[%clk 0:00:07]}
48. Rb6+ {[%clk 0:00:59.3]} 48... Kf7 {[%clk 0:00:07.4]} 49. f3 {[%clk
0:00:59.2]} 49... h4 {[%clk 0:00:07.7]} 50. Kh2 {[%clk 0:00:52.1]} 50... g5
{[%clk 0:00:07.4]} 51. Rb2 {[%clk 0:00:44.4]} 51... Rd7 {[%clk 0:00:07.3]} 52.
Kg1 {[%clk 0:00:43.5]} 52... Kg6 {[%clk 0:00:07.6]} 53. Kf2 {[%clk 0:00:43.8]}
53... Kh5 {[%clk 0:00:07.3]} 54. g4+ {[%clk 0:00:42.8]} 54... hxg3+ {[%clk
0:00:07.4]} 55. Kxg3 {[%clk 0:00:43.2]} 55... Rd1 {[%clk 0:00:08.3]} 56. Rxb7
{[%clk 0:00:42.2]} 56... Rg1+ {[%clk 0:00:08.5]} 57. Kf2 {[%clk 0:00:41.7]}
57... Ra1 {[%clk 0:00:09.4]} 58. Rb5 {[%clk 0:00:40.3]} 58... Ra2+ {[%clk
0:00:08.8]} 59. Kg3 {[%clk 0:00:39.8]} 1-0

[Event "*** Titled Tuesday Blitz"]
[Site "Chess.com"]
[Date "2021.02.16"]
[Round "5"]
[White "thechesscorner64"]
[Black "Berardino"]
[Result "0-1"]
[WhiteElo "2416"]
[BlackElo "2587"]
[TimeControl "180+1"]
[EndTime "10:58:38 PST"]
[Termination "Berardino won by checkmate"]

1. e4 {[%clk 0:03:00.9]} 1... c5 {[%clk 0:02:59.7]} 2. Nf3 {[%clk 0:02:58.6]}
2... b6 {[%clk 0:03:00]} 3. d3 {[%clk 0:02:55.4]} 3... Bb7 {[%clk 0:02:59.4]} 4.
g3 {[%clk 0:02:55.8]} 4... e6 {[%clk 0:02:59.4]} 5. Bg2 {[%clk 0:02:55.7]} 5...
Nf6 {[%clk 0:02:59.9]} 6. e5 {[%clk 0:02:48.6]} 6... Nd5 {[%clk 0:02:59.1]} 7.
O-O {[%clk 0:02:47.8]} 7... Be7 {[%clk 0:02:58.8]} 8. Nbd2 {[%clk 0:02:46.3]}
8... O-O {[%clk 0:02:58.4]} 9. Ne4 {[%clk 0:02:45.9]} 9... f5 {[%clk 0:02:58]}
10. exf6 {[%clk 0:02:45.3]} 10... Nxf6 {[%clk 0:02:58.2]} 11. Nfg5 {[%clk
0:02:21.4]} 11... Nxe4 {[%clk 0:02:51.4]} 12. Bxe4 {[%clk 0:02:17.2]} 12... Bxe4
{[%clk 0:02:50.6]} 13. Nxe4 {[%clk 0:02:17.2]} 13... Nc6 {[%clk 0:02:50.8]} 14.
Qh5 {[%clk 0:02:13.1]} 14... Nd4 {[%clk 0:02:45.6]} 15. c3 {[%clk 0:02:03.9]}
15... Nf3+ {[%clk 0:02:45]} 16. Kh1 {[%clk 0:02:03.3]} 16... d5 {[%clk
0:02:44.4]} 17. Nd2 {[%clk 0:01:58.2]} 17... Ng5 {[%clk 0:02:21.6]} 18. f4
{[%clk 0:01:40]} 18... Nf7 {[%clk 0:02:18.7]} 19. Nf3 {[%clk 0:01:37.9]} 19...
g6 {[%clk 0:02:17.2]} 20. Qh3 {[%clk 0:01:37.2]} 20... Qd6 {[%clk 0:02:16.1]}
21. Bd2 {[%clk 0:01:37.4]} 21... e5 {[%clk 0:02:08.1]} 22. Rae1 {[%clk
0:01:33.9]} 22... Bf6 {[%clk 0:02:03]} 23. fxe5 {[%clk 0:01:28.2]} 23... Nxe5
{[%clk 0:02:03.9]} 24. Nxe5 {[%clk 0:01:26.6]} 24... Bxe5 {[%clk 0:02:02.9]} 25.
Bh6 {[%clk 0:01:26.4]} 25... Rxf1+ {[%clk 0:01:48.4]} 26. Qxf1 {[%clk
0:01:25.2]} 26... d4 {[%clk 0:01:43.4]} 27. Qf3 {[%clk 0:01:16.7]} 27... Rd8
{[%clk 0:01:37.4]} 28. c4 {[%clk 0:01:15.6]} 28... Bg7 {[%clk 0:01:34.1]} 29.
Bxg7 {[%clk 0:01:00.8]} 29... Kxg7 {[%clk 0:01:35]} 30. Rf1 {[%clk 0:01:00]}
30... Qe7 {[%clk 0:01:31.3]} 31. Kg2 {[%clk 0:00:53.7]} 31... Re8 {[%clk
0:01:30.9]} 32. Rf2 {[%clk 0:00:52.9]} 32... h5 {[%clk 0:01:27.7]} 33. h4 {[%clk
0:00:52.5]} 33... a6 {[%clk 0:01:20.3]} 34. Qd5 {[%clk 0:00:47.7]} 34... Qe6
{[%clk 0:01:11.2]} 35. Qf3 {[%clk 0:00:37.4]} 35... b5 {[%clk 0:01:08.6]} 36. b3
{[%clk 0:00:37.3]} 36... Re7 {[%clk 0:00:47.7]} 37. Qf4 {[%clk 0:00:33.3]} 37...
Qc6+ {[%clk 0:00:44.8]} 38. Kh2 {[%clk 0:00:33.6]} 38... Kh7 {[%clk 0:00:41.4]}
39. Qf8 {[%clk 0:00:29.7]} 39... Qe8 {[%clk 0:00:34.4]} 40. Qf3 {[%clk
0:00:19.6]} 40... Re3 {[%clk 0:00:30.4]} 41. Qb7+ {[%clk 0:00:19.4]} 41... Kh6
{[%clk 0:00:28.6]} 42. Qc7 {[%clk 0:00:17]} 42... Qe5 {[%clk 0:00:25.3]} 43.
Qxe5 {[%clk 0:00:14.8]} 43... Rxe5 {[%clk 0:00:26.2]} 44. Rf6 {[%clk 0:00:11]}
44... Re2+ {[%clk 0:00:20.9]} 45. Kh3 {[%clk 0:00:10.8]} 45... Rxa2 {[%clk
0:00:21.4]} 46. Rc6 {[%clk 0:00:11]} 46... b4 {[%clk 0:00:17.5]} 47. Rxc5 {[%clk
0:00:10.8]} 47... Rb2 {[%clk 0:00:18]} 48. Rd5 {[%clk 0:00:10.7]} 48... Rxb3
{[%clk 0:00:18.2]} 49. Rxd4 {[%clk 0:00:11.6]} 49... a5 {[%clk 0:00:18.2]} 50.
c5 {[%clk 0:00:11.4]} 50... Rc3 {[%clk 0:00:16.4]} 51. Rc4 {[%clk 0:00:09.8]}
51... Rxc4 {[%clk 0:00:16.2]} 52. dxc4 {[%clk 0:00:10.1]} 52... b3 {[%clk
0:00:17.1]} 53. c6 {[%clk 0:00:11]} 53... b2 {[%clk 0:00:18]} 54. c7 {[%clk
0:00:11.5]} 54... b1=Q {[%clk 0:00:18.9]} 55. c8=Q {[%clk 0:00:12.2]} 55... Qh1#
{[%clk 0:00:19.4]} 0-1